lending/lending_fUSD_20260110
["ID","MTS","AMOUNT","RATE_DAILY","PERIOD"]
[401203289,1768042148982,500.0,0.00015173,2]
[401203295,1768042231698,-510.77976475,0.00015721,2]
[401203297,1768042231709,-422.00288169,0.00015724,2]
[401203298,1768042231720,-777.99711831,0.00015724,2]
[401203299,1768042231728,-300.0,0.00015724,2]
[401203300,1768042231738,-66.91310601,0.00015725,2]
[401203301,1768042231747,-233.86226435,0.00015725,2]
[401203302,1768042231756,-150.0,0.00015725,2]
[401203303,1768042231766,-150.0,0.00015725,2]
[401203304,1768042231775,-150.0,0.00015725,2]
[401203305,1768042231784,-182.95326985,0.00015725,2]
[401203306,1768042231794,-150.0,0.00015725,2]
[401203307,1768042231803,-153.64433566,0.00015725,2]
[401203308,1768042231811,-238.77489041,0.00015725,2]
[401203309,1768042231823,-1052.16948953,0.00015725,2]
[401203310,1768042231834,-545.61562006,0.00015725,2]
[401203311,1768042231843,-110.47873559,0.00015735,2]
[401203312,1768042231855,-192.36039575,0.00015735,2]
[401203313,1768042231864,-242.21684087,0.00015735,2]
[401203314,1768042231911,-60.62229047,0.00015735,2]
[401203315,1768042231921,-199.22770953,0.0001578,2]
[401203316,1768042231932,-13.30554455,0.0001578,2]
[401203317,1768042231941,-150.0,0.0001578,2]
[401203318,1768042231950,-500.0,0.0001578,2]
[401203319,1768042231960,-224.22402048,0.0001578,2]
[401203321,1768042231971,-6.81090263,0.0001578,2]
[401203323,1768042231980,-342.36195023,0.0001578,2]
[401203344,1768042237764,-157.63804977,0.0001578,2]
[401203345,1768042237775,-150.0,0.0001578,2]
[401203346,1768042237784,-150.0,0.0001578,2]
[401203347,1768042237794,-500.0,0.0001578,2]
[401203348,1768042237803,-150.0,0.0001578,2]
[401203349,1768042237812,-150.0,0.0001578,2]
[401203350,1768042237823,-178.40260868,0.0001578,2]
[401203351,1768042237833,-176.12566223,0.0001578,2]
[401203352,1768042237842,-153.8472853,0.00015797,2]
[401203353,1768042237853,-346.1527147,0.00015797,2]
[401203354,1768042237863,-500.0,0.00015797,2]
[401203355,1768042237873,-313.26053326,0.00015797,2]
[401203356,1768042237889,-186.73946674,0.00015797,2]
[401203357,1768042237899,-1000000.0,0.00015798,2]
[401203358,1768042237908,-200.0,0.00015835,2]
[401203359,1768042237919,-500.0,0.00015835,2]
[401203360,1768042237929,-389.0183163,0.00015835,2]
[401203361,1768042237939,-150.0,0.00015835,2]
[401203362,1768042237949,-150.0,0.00015835,2]
[401203363,1768042237960,-199.62704522,0.00015835,2]
[401203364,1768042237970,-150.0,0.00015835,2]
[401203365,1768042237979,-300.0,0.00015889,2]
[401203366,1768042237989,-1200.0,0.00015889,2]
[401203367,1768042237999,-500.0,0.00015889,2]
[401203368,1768042238009,-184.06920116,0.00015889,2]
[401203369,1768042238018,-150.0,0.00015889,2]
[401203370,1768042238028,-201.65586908,0.00015889,2]
[401203371,1768042238038,-185.62708354,0.0001589,2]
[401203372,1768042238048,-500.0,0.0001589,2]
[401203373,1768042238058,-151.0,0.0001589,2]
[401203374,1768042238073,-151.0,0.0001589,2]
[401203375,1768042238082,-151.0,0.0001589,2]
[401203377,1768042238092,-151.0,0.0001589,2]
[401203378,1768042238103,-151.0,0.0001589,2]
[401203381,1768042238114,-151.0,0.0001589,2]
[401203383,1768042238124,-151.0,0.0001589,2]
[401203385,1768042238134,-151.0,0.0001589,2]
[401203387,1768042238145,-151.0,0.0001589,2]
[401203389,1768042238155,-151.0,0.0001589,2]
[401203391,1768042238166,-151.0,0.0001589,2]
[401203393,1768042238175,-151.0,0.0001589,2]
[401203395,1768042238184,-151.0,0.0001589,2]
[401203397,1768042238194,-151.0,0.0001589,2]
[401203399,1768042238204,-151.0,0.0001589,2]
[401203401,1768042238214,-151.0,0.0001589,2]
[401203402,1768042238224,-151.0,0.0001589,2]
[401203404,1768042238233,-151.0,0.0001589,2]
[401203406,1768042238243,-151.0,0.0001589,2]
[401203408,1768042238253,-151.0,0.0001589,2]
[401203411,1768042238263,-151.0,0.0001589,2]
[401203412,1768042238273,-200.0,0.0001589,2]
[401203414,1768042238283,-151.0,0.0001589,2]
[401203416,1768042238293,-151.0,0.0001589,2]
[401203419,1768042238303,-151.0,0.0001589,2]
[401203421,1768042238313,-151.0,0.0001589,2]
[401203423,1768042238323,-151.0,0.0001589,2]
[401203425,1768042238333,-151.0,0.0001589,2]
[401203427,1768042238343,-151.0,0.0001589,2]
[401203429,1768042238353,-153.50206011,0.0001589,2]
[401203431,1768042238363,-200.0,0.0001589,2]
[401203432,1768042238373,-500.0,0.0001589,2]
[401203434,1768042238383,-200.0,0.0001589,2]
[401203437,1768042238393,-9999.37,0.00015898,2]
[401203438,1768042238402,-299.99,0.00015898,2]
[401203440,1768042238413,-3121.21,0.00015898,2]
[401203443,1768042238424,-150.99,0.00015898,2]
[401203445,1768042238433,-426.28,0.00015898,2]
[401203447,1768042238442,-9999.99,0.00015898,2]
[401203449,1768042238452,-1465.96,0.00015898,2]
[401203451,1768042238461,-200.0,0.00015898,2]
[401203453,1768042238470,-200.0,0.00015898,2]
[401203455,1768042238479,-3816.58,0.00015899,2]
[401203457,1768042238489,-33588.0433,0.000159,2]
[401203459,1768042238498,-1000.0,0.000159,2]
[401203461,1768042238508,-1523.46385207,0.000159,2]
[401203463,1768042238517,-21580.85922266,0.00015903,2]
[401203465,1768042238527,-151.0,0.00015924,2]
[401203467,1768042238537,-151.0,0.00015931,2]
[401203469,1768042238546,-151.0,0.00015939,2]
[401203471,1768042238555,-150.0,0.00015944,2]
[401203473,1768042238564,-524.0,0.00015944,2]
[401203475,1768042238574,-500.0,0.00015944,2]
[401203476,1768042238585,-255.38896935,0.00015944,2]
[401203479,1768042238595,-150.0,0.00015947,2]
[401203481,1768042238605,-500.0,0.00015947,2]
[401203483,1768042238615,-500.0,0.00015947,2]
[401203485,1768042238624,-150.0,0.00015947,2]
[401203487,1768042238634,-150.0,0.00015947,2]
[401203488,1768042238643,-150.0,0.00015947,2]
[401203490,1768042238653,-221.72177176,0.00015947,2]
[401203493,1768042238664,-200.0,0.00015999,2]
[401203495,1768042238674,-524.0,0.00015999,2]
[401203497,1768042238684,-500.0,0.00015999,2]
[401203499,1768042238693,-535.89319473,0.00015999,2]
[401203501,1768042238703,-500.0,0.00015999,2]
[401203503,1768042238713,-519.66992392,0.00015999,2]
[401203505,1768042238723,-500.0,0.00015999,2]
[401203507,1768042238732,-500.0,0.00015999,2]
[401203509,1768042238741,-500.0,0.00015999,2]
[401203511,1768042238751,-500.0,0.00015999,2]
[401203513,1768042238761,-615.06251518,0.00015999,2]
[401203515,1768042238770,-500.0,0.00015999,2]
[401203517,1768042238779,-511.07889796,0.00015999,2]
[401203519,1768042238789,-500.0,0.00015999,2]
[401203521,1768042238798,-500.0,0.00015999,2]
[401203523,1768042238808,-500.0,0.00015999,2]
[401203525,1768042238817,-1836.56,0.00015999,2]
[401203527,1768042238826,-200.0,0.00016,2]
[401203529,1768042238836,-150.0,0.00016002,2]
[401203531,1768042238846,-500.0,0.00016002,2]
[401203533,1768042238855,-500.0,0.00016002,2]
[401203535,1768042238865,-150.0,0.00016002,2]
[401203537,1768042238875,-150.0,0.00016002,2]
[401203539,1768042238885,-150.0,0.00016002,2]
[401203541,1768042238895,-5885.93,0.00016002,2]
[401203543,1768042238904,-166.66,0.00016043,2]
[401203572,1768042239200,-302.83913131,0.00016044,2]
[401203576,1768042239234,-302.83913131,0.00016044,2]
[401203578,1768042239244,-524.0,0.00016054,2]
[401203580,1768042239254,-500.0,0.00016054,2]
[401203582,1768042239264,-212.45206209,0.00016057,2]
[401203584,1768042239273,-500.0,0.00016057,2]
[401203586,1768042239282,-500.0,0.00016057,2]
[401203588,1768042239292,-288.61019467,0.00016057,2]
[401203590,1768042239301,-150.0,0.00016057,2]
[401203592,1768042239310,-150.0,0.00016057,2]
[401203594,1768042239321,-499.99,0.00016057,2]
[401203596,1768042239330,-9999.99,0.00016057,2]
[401203598,1768042239339,-9999.99,0.00016057,2]
[401203600,1768042239348,-200.0,0.00016057,2]
[401203602,1768042239358,-200.0,0.00016057,2]
[401203605,1768042239367,-524.0,0.00016109,2]
[401203606,1768042239377,-500.0,0.00016109,2]
[401203609,1768042239387,-500.0,0.00016111,2]
[401203611,1768042239396,-500.0,0.00016111,2]
[401203613,1768042239405,-150.0,0.00016111,2]
[401203615,1768042239416,-150.0,0.00016111,2]
[401203617,1768042239426,-166.66,0.00016124,2]
[401203619,1768042239435,-1901.92726037,0.00016125,2]
[401203621,1768042239445,-15934.79380958,0.00016127,2]
[401203623,1768042239455,-1049.6828,0.0001613,2]
[401203625,1768042239464,-28178.31657561,0.00016135,2]
[401203627,1768042239474,-524.0,0.00016163,2]
[401203629,1768042239483,-281.8384419,0.00016163,2]
[401203631,1768042239491,-500.0,0.00016164,2]
[401203633,1768042239500,-500.0,0.00016166,2]
[401203635,1768042239509,-500.0,0.00016166,2]
[401203637,1768042239518,-150.0,0.00016166,2]
[401203639,1768042239528,-250.0,0.00016166,2]
[401203641,1768042239537,-723.68584321,0.00016168,2]
[401203643,1768042239546,-762.78991424,0.00016193,2]
[401203645,1768042239555,-150.0,0.000162,2]
[401203647,1768042239565,-150.0,0.000162,2]
[401203649,1768042239574,-150.0,0.000162,2]
[401203651,1768042239584,-150.0,0.000162,2]
[401203653,1768042239593,-223.10788253,0.000162,2]
[401203655,1768042239603,-150.0,0.000162,2]
[401203657,1768042239612,-150.0,0.000162,2]
[401203659,1768042239622,-150.0,0.000162,2]
[401203661,1768042239631,-150.0,0.000162,2]
[401203663,1768042239641,-150.0,0.000162,2]
[401203665,1768042239651,-150.0,0.000162,2]
[401203667,1768042239659,-150.0,0.000162,2]
[401203668,1768042239668,-150.0,0.000162,2]
[401203669,1768042239677,-150.0,0.000162,2]
[401203670,1768042239687,-150.0,0.000162,2]
[401203671,1768042239696,-150.0,0.000162,2]
[401203672,1768042239706,-200.0,0.00016218,2]
[401203673,1768042239715,-200.0,0.00016218,2]
[401203674,1768042239724,-524.0,0.00016218,2]
[401203675,1768042239733,-500.0,0.00016221,2]
[401203676,1768042239742,-500.0,0.00016221,2]
[401203677,1768042239750,-206.22263087,0.00016221,2]
[401203678,1768042239759,-150.0,0.00016223,2]
[401203679,1768042239768,-150.0,0.00016224,2]
[401203680,1768042239777,-150.0,0.00016227,2]
[401203681,1768042239786,-150.0,0.00016229,2]
[401203683,1768042239795,-500.0,0.0001623,2]
[401203685,1768042239804,-569.85484001,0.0001623,2]
[401203687,1768042239813,-500.0,0.0001623,2]
[401203689,1768042239822,-500.0,0.0001623,2]
[401203691,1768042239831,-500.0,0.0001623,2]
[401203693,1768042239841,-500.0,0.0001623,2]
[401203695,1768042239850,-500.0,0.0001623,2]
[401203697,1768042239859,-500.0,0.0001623,2]
[401203699,1768042239868,-500.0,0.0001623,2]
[401203701,1768042239877,-500.0,0.0001623,2]
[401203703,1768042239887,-500.0,0.0001623,2]
[401203705,1768042239896,-500.0,0.0001623,2]
[401203707,1768042239905,-500.0,0.0001623,2]
[401203708,1768042239915,-568.48173719,0.0001623,2]
[401203709,1768042239925,-500.0,0.0001623,2]
[401203710,1768042239935,-500.0,0.0001623,2]
[401203711,1768042239944,-500.0,0.0001623,2]
[401203712,1768042239954,-500.0,0.0001623,2]
[401203713,1768042239964,-500.0,0.0001623,2]
[401203714,1768042239973,-500.0,0.0001623,2]
[401203715,1768042239984,-500.0,0.0001623,2]
[401203716,1768042239995,-500.0,0.0001623,2]
[401203717,1768042240005,-500.0,0.0001623,2]
[401203718,1768042240015,-500.0,0.0001623,2]
[401203719,1768042240026,-500.0,0.0001623,2]
[401203720,1768042240035,-500.0,0.0001623,2]
[401203721,1768042240044,-500.0,0.0001623,2]
[401203722,1768042240054,-260.06429066,0.0001623,2]
[401203724,1768042240063,-546.60063579,0.0001623,2]
[401203726,1768042240076,-500.0,0.0001623,2]
[401203728,1768042240086,-500.0,0.0001623,2]
[401203730,1768042240095,-500.0,0.0001623,2]
[401203732,1768042240105,-500.0,0.0001623,2]
[401203734,1768042240115,-500.0,0.0001623,2]
[401203736,1768042240124,-500.0,0.0001623,2]
[401203738,1768042240133,-500.0,0.0001623,2]
[401203740,1768042240144,-288.8563921,0.0001623,2]
[401203742,1768042240152,-265.20667468,0.0001623,2]
[401203744,1768042240162,-500.0,0.0001623,2]
[401203745,1768042240171,-500.0,0.0001623,2]
[401203748,1768042240182,-500.0,0.0001623,2]
[401203750,1768042240192,-500.0,0.0001623,2]
[401203752,1768042240201,-500.0,0.0001623,2]
[401203754,1768042240211,-500.0,0.0001623,2]
[401203756,1768042240220,-500.0,0.0001623,2]
[401203758,1768042240229,-500.0,0.0001623,2]
[401203760,1768042240238,-500.0,0.0001623,2]
[401203762,1768042240248,-192.7243004,0.0001623,2]
[401203764,1768042240257,-500.0,0.0001623,2]
[401203766,1768042240266,-500.0,0.0001623,2]
[401203768,1768042240274,-500.0,0.0001623,2]
[401203770,1768042240284,-207.58974413,0.0001623,2]
[401203772,1768042240292,-500.0,0.0001623,2]
[401203774,1768042240302,-500.0,0.0001623,2]
[401203775,1768042240311,-500.0,0.0001623,2]
[401203777,1768042240320,-500.0,0.0001623,2]
[401203779,1768042240329,-500.0,0.0001623,2]
[401203781,1768042240338,-500.0,0.0001623,2]
[401203783,1768042240348,-500.0,0.0001623,2]
[401203785,1768042240357,-500.0,0.0001623,2]
[401203787,1768042240367,-500.0,0.0001623,2]
[401203789,1768042240376,-500.0,0.0001623,2]
[401203791,1768042240385,-500.0,0.0001623,2]
[401203793,1768042240395,-500.0,0.0001623,2]
[401203795,1768042240404,-231.84154979,0.0001623,2]
[401203797,1768042240413,-150.0,0.00016232,2]
[401203799,1768042240423,-150.0,0.00016235,2]
[401203801,1768042240433,-228652.31973776,0.00016235,2]
[401203803,1768042240443,-150.0,0.00016247,2]
[401203805,1768042240453,-150.0,0.00016248,2]
[401203807,1768042240463,-150.0,0.00016254,2]
[401203809,1768042240473,-150.0,0.00016257,2]
[401203811,1768042240483,-150.0,0.00016264,2]
[401203813,1768042240493,-2498.6132976,0.00016266,2]
[401203815,1768042240503,-823.61319503,0.00016268,2]
[401203817,1768042240512,-1506.63586527,0.00016268,2]
[401203819,1768042240521,-1500.95743752,0.00016268,2]
[401203821,1768042240531,-1531.96318574,0.00016268,2]
[401203823,1768042240542,-1500.70457439,0.00016268,2]
[401203825,1768042240551,-986.73727257,0.00016268,2]
[401203827,1768042240560,-150.0,0.00016269,2]
[401203829,1768042240569,-150.0,0.00016269,2]
[401203831,1768042240578,-150.0,0.0001627,2]
[401203833,1768042240587,-150.0,0.00016272,2]
[401203835,1768042240597,-524.0,0.00016273,2]
[401203837,1768042240606,-1836.56,0.00016273,2]
[401203839,1768042240616,-334.34563467,0.00016276,2]
[401203841,1768042240626,-500.0,0.00016276,2]
[401203843,1768042240635,-179.16,0.00016278,2]
[401203845,1768042240645,-150.0,0.00016281,2]
[401203847,1768042240654,-150.0,0.00016282,2]
[401203849,1768042240663,-150.0,0.00016286,2]
[401203851,1768042240674,-150.0,0.00016294,2]
[401203853,1768042240683,-150.0,0.00016295,2]
[401203855,1768042240693,-150.0,0.00016296,2]
[401203857,1768042240702,-150.0,0.00016296,2]
[401203859,1768042240713,-150.0,0.00016304,2]
[401203862,1768042240722,-150.0,0.00016307,2]
[401203863,1768042240732,-150.0,0.00016314,2]
[401203865,1768042240741,-150.0,0.00016317,2]
[401203867,1768042240750,-150.0,0.0001632,2]
[401203869,1768042240759,-524.0,0.00016328,2]
[401203871,1768042240769,-150.0,0.00016329,2]
[401203873,1768042240779,-500.0,0.00016331,2]
[401203875,1768042240788,-28178.31657556,0.00016331,2]
[401203878,1768042240797,-150.0,0.00016334,2]
[401203880,1768042240808,-500.0,0.00016337,2]
[401203881,1768042240822,-150.0,0.00016338,2]
[401203884,1768042240832,-150.0,0.00016338,2]
[401203886,1768042240842,-150.0,0.0001634,2]
[401203888,1768042240851,-150.0,0.00016343,2]
[401203890,1768042240860,-150.0,0.00016344,2]
[401203891,1768042240869,-302.83913131,0.00016354,2]
[401203893,1768042240887,-302.83913131,0.00016354,2]
[401203895,1768042240897,-150.0,0.00016361,2]
[401203897,1768042240907,-150.0,0.00016361,2]
[401203899,1768042240916,-150.0,0.00016364,2]
[401203901,1768042240926,-150.0,0.00016364,2]
[401203903,1768042240940,-150.0,0.00016364,2]
[401203905,1768042240961,-150.0,0.00016368,2]
[401203907,1768042240974,-150.0,0.00016371,2]
[401203909,1768042240984,-150.0,0.00016373,2]
[401203912,1768042240993,-200.0,0.0001638,2]
[401203913,1768042241003,-200.0,0.0001638,2]
[401203916,1768042241013,-524.0,0.00016383,2]
[401203918,1768042241026,-500.0,0.00016385,2]
[401203920,1768042241036,-150.0,0.00016387,2]
[401203922,1768042241046,-150.0,0.00016388,2]
[401203924,1768042241055,-150.0,0.00016389,2]
[401203926,1768042241067,-150.0,0.00016392,2]
[401203928,1768042241078,-150.0,0.00016393,2]
[401203930,1768042241087,-150.0,0.000164,2]
[401203932,1768042241097,-151.0,0.00016407,2]
[401203934,1768042241107,-578.20924308,0.00016407,2]
[401203936,1768042241116,-250.0,0.00016407,2]
[401203938,1768042241125,-496.47127164,0.00016407,2]
[401203940,1768042241134,-623.58710448,0.00016407,2]
[401203942,1768042241143,-250.0,0.00016407,2]
[401203944,1768042241152,-151.0,0.00016407,2]
[401203946,1768042241162,-250.0,0.00016407,2]
[401203948,1768042241171,-1000.0,0.00016407,2]
[401203950,1768042241181,-250.0,0.00016407,2]
[401203951,1768042241190,-1000.0,0.00016407,2]
[401203954,1768042241200,-1000.0,0.00016407,2]
[401203956,1768042241209,-250.0,0.00016407,2]
[401203958,1768042241219,-1000.0,0.00016407,2]
[401203960,1768042241229,-250.0,0.00016407,2]
[401203961,1768042241238,-1000.0,0.00016407,2]
[401203964,1768042241248,-250.0,0.00016407,2]
[401203966,1768042241258,-1000.0,0.00016407,2]
[401203968,1768042241268,-250.0,0.00016407,2]
[401203970,1768042241277,-1000.0,0.00016407,2]
[401203972,1768042241286,-250.0,0.00016407,2]
[401203974,1768042241295,-1000.0,0.00016407,2]
[401203976,1768042241305,-250.0,0.00016407,2]
[401203978,1768042241314,-250.0,0.00016407,2]
[401203980,1768042241325,-1000.0,0.00016407,2]
[401203982,1768042241335,-250.0,0.00016407,2]
[401203984,1768042241344,-250.0,0.00016407,2]
[401203986,1768042241353,-151.0,0.00016407,2]
[401203988,1768042241362,-1000.0,0.00016407,2]
[401203990,1768042241373,-248.61515312,0.00016407,2]
[401203992,1768042241381,-270.73180541,0.00016407,2]
[401203994,1768042241391,-156.587,0.00016407,2]
[401203996,1768042241401,-1000.0,0.00016407,2]
[401203998,1768042241410,-162.380719,0.00016407,2]
[401203999,1768042241420,-2000.0,0.00016407,2]
[401204001,1768042241429,-250.0,0.00016407,2]
[401204003,1768042241438,-1000.0,0.00016407,2]
[401204005,1768042241448,-2000.0,0.00016407,2]
[401204007,1768042241458,-155.41089514,0.00016407,2]
[401204010,1768042241468,-250.0,0.00016407,2]
[401204011,1768042241477,-1000.0,0.00016407,2]
[401204013,1768042241487,-2000.0,0.00016407,2]
[401204016,1768042241498,-321.91220307,0.00016407,2]
[401204018,1768042241508,-1000.0,0.00016407,2]
[401204020,1768042241517,-2000.0,0.00016407,2]
[401204022,1768042241527,-1000.0,0.00016407,2]
[401204024,1768042241535,-2000.0,0.00016407,2]
[401204026,1768042241544,-2000.0,0.00016407,2]
[401204028,1768042241553,-322.6107,0.00016407,2]
[401204030,1768042241560,-2000.0,0.00016407,2]
[401204032,1768042241568,-2000.0,0.00016407,2]
[401204034,1768042241577,-1377.13522971,0.00016407,2]
[401204036,1768042241586,-998.0,0.00016407,2]
[401204038,1768042241595,-2000.0,0.00016407,2]
[401204040,1768042241604,-2000.0,0.00016407,2]
[401204042,1768042241613,-2000.0,0.00016407,2]
[401204044,1768042241622,-500.0,0.00016407,2]
[401204046,1768042241632,-500.0,0.00016407,2]
[401204048,1768042241642,-250.0,0.00016407,2]
[401204050,1768042241651,-500.0,0.00016407,2]
[401204052,1768042241660,-250.0,0.00016407,2]
[401204054,1768042241669,-500.0,0.00016407,2]
[401204056,1768042241678,-250.0,0.00016407,2]
[401204058,1768042241687,-500.0,0.00016407,2]
[401204060,1768042241696,-250.0,0.00016407,2]
[401204062,1768042241706,-500.0,0.00016407,2]
[401204064,1768042241715,-250.0,0.00016407,2]
[401204066,1768042241724,-500.0,0.00016407,2]
[401204068,1768042241733,-250.0,0.00016407,2]
[401204070,1768042241742,-250.0,0.00016407,2]
[401204072,1768042241751,-500.0,0.00016407,2]
[401204074,1768042241760,-250.0,0.00016407,2]
[401204076,1768042241769,-250.0,0.00016407,2]
[401204078,1768042241778,-500.0,0.00016407,2]
[401204080,1768042241787,-250.0,0.00016407,2]
[401204082,1768042241796,-250.0,0.00016407,2]
[401204084,1768042241805,-181.08010149,0.00016407,2]
[401204086,1768042241814,-500.0,0.00016407,2]
[401204088,1768042241824,-250.0,0.00016407,2]
[401204089,1768042241833,-250.0,0.00016407,2]
[401204091,1768042241842,-500.0,0.00016407,2]
[401204093,1768042241851,-250.0,0.00016407,2]
[401204095,1768042241862,-250.0,0.00016407,2]
[401204097,1768042241871,-628.77903219,0.00016407,2]
[401204099,1768042241880,-250.0,0.00016407,2]
[401204101,1768042241889,-250.0,0.00016407,2]
[401204103,1768042241898,-250.0,0.00016407,2]
[401204105,1768042241908,-250.0,0.00016407,2]
[401204107,1768042241918,-250.0,0.00016407,2]
[401204109,1768042241927,-250.0,0.00016407,2]
[401204111,1768042241937,-250.0,0.00016407,2]
[401204113,1768042241947,-250.0,0.00016407,2]
[401204115,1768042241957,-250.0,0.00016407,2]
[401204117,1768042241967,-250.0,0.00016407,2]
[401204119,1768042241977,-250.0,0.00016407,2]
[401204121,1768042241986,-500.0,0.00016407,2]
[401204123,1768042241995,-250.0,0.00016407,2]
[401204125,1768042242004,-500.0,0.00016407,2]
[401204127,1768042242013,-500.0,0.00016407,2]
[401204129,1768042242023,-250.0,0.00016407,2]
[401204131,1768042242032,-500.0,0.00016407,2]
[401204133,1768042242042,-250.0,0.00016407,2]
[401204135,1768042242051,-500.0,0.00016407,2]
[401204137,1768042242060,-250.0,0.00016407,2]
[401204139,1768042242081,-620.0,0.00016407,2]
[401204141,1768042242096,-500.0,0.00016407,2]
[401204143,1768042242105,-250.0,0.00016407,2]
[401204145,1768042242114,-500.0,0.00016407,2]
[401204147,1768042242124,-250.0,0.00016407,2]
[401204149,1768042242133,-500.0,0.00016407,2]
[401204151,1768042242143,-250.0,0.00016407,2]
[401204153,1768042242152,-500.0,0.00016407,2]
[401204155,1768042242161,-187.78006525,0.00016407,2]
[401204157,1768042242171,-500.0,0.00016407,2]
[401204159,1768042242181,-372.14655061,0.00016407,2]
[401204161,1768042242190,-500.0,0.00016407,2]
[401204163,1768042242199,-500.0,0.00016407,2]
[401204165,1768042242208,-424.19615825,0.00016407,2]
[401204167,1768042242218,-151.0,0.00016407,2]
[401204169,1768042242227,-150.0,0.00016408,2]
[401204171,1768042242236,-150.0,0.00016408,2]
[401204173,1768042242245,-150.0,0.0001641,2]
[401204175,1768042242255,-150.0,0.00016415,2]
[401204177,1768042242265,-150.0,0.00016416,2]
[401204179,1768042242274,-150.0,0.00016425,2]
[401204181,1768042242283,-150.0,0.00016429,2]
[401204183,1768042242293,-150.0,0.00016434,2]
[401204185,1768042242303,-524.0,0.00016437,2]
[401204187,1768042242312,-500.0,0.00016438,2]
[401204189,1768042242322,-500.0,0.00016438,2]
[401204191,1768042242331,-500.0,0.00016438,2]
[401204193,1768042242341,-359.11221161,0.00016438,2]
[401204195,1768042242350,-8860.89,0.00016438,2]
[401204197,1768042242359,-600.0,0.00016438,2]
[401204199,1768042242369,-567.0,0.00016438,2]
[401204201,1768042242378,-500.0,0.00016438,2]
[401204203,1768042242388,-200.0,0.00016438,2]
[401204205,1768042242398,-200.0,0.00016438,2]
[401204207,1768042242407,-500.0,0.00016438,2]
[401204209,1768042242417,-150.0,0.0001644,2]
[401204211,1768042242427,-500.0,0.0001644,2]
[401204213,1768042242436,-150.0,0.00016442,2]
[401204215,1768042242446,-150.0,0.00016442,2]
[401204217,1768042242455,-150.0,0.00016445,2]
[401204219,1768042242465,-166.66,0.00016456,2]
[401204221,1768042242474,-723.68584315,0.00016457,2]
[401204223,1768042242483,-150.0,0.00016457,2]
[401204225,1768042242493,-150.0,0.00016457,2]
[401204227,1768042242502,-150.0,0.00016457,2]
[401204229,1768042242511,-999.0,0.00016458,3]
[401204231,1768042242520,-150.0,0.00016464,2]
[401204233,1768042242531,-150.0,0.00016469,2]
[401204235,1768042242541,-150.0,0.00016477,2]
[401204237,1768042242551,-150.0,0.00016477,2]
[401204239,1768042242560,-150.0,0.00016481,2]
[401204241,1768042242570,-150.0,0.00016484,2]
[401204243,1768042242580,-150.0,0.00016486,2]
[401204245,1768042242589,-150.0,0.00016488,2]
[401204247,1768042242599,-150.0,0.00016489,2]
[401204249,1768042242609,-214.65,0.00016489,2]
[401204251,1768042242619,-524.0,0.00016492,2]
[401204253,1768042242629,-500.0,0.00016495,2]
[401204255,1768042242639,-150.0,0.00016496,2]
[401204257,1768042242649,-150.0,0.000165,2]